bitfinex/quotes_SOLUSD_20230116
["timestamp","ask_amount","ask_price","bid_price","bid_amount"]
[1673879419147,20.0,23.305,23.276,20.0]
[1673879419358,17.0,23.304,23.276,20.0]
[1673879419559,38.46196354,23.304,23.277,20.0]
[1673879419760,21.46196354,23.303,23.277,20.0]
[1673879419970,17.0,23.302,23.277,20.0]
[1673879420302,38.46196354,23.302,23.277,20.0]
[1673879420489,17.0,23.302,23.277,20.0]
[1673879420699,21.46196354,23.302,23.277,20.0]
[1673879420929,17.0,23.301,23.278,17.0]
[1673879421115,21.46196354,23.302,23.278,17.0]
[1673879421116,21.46196354,23.302,23.279,20.0]
[1673879421330,17.187948,23.306,23.281,20.0]
[1673879421558,17.187948,23.306,23.282,17.0]
[1673879421879,17.187948,23.306,23.283,40.0]
[1673879422088,17.187948,23.306,23.284,17.0]
[1673879422284,17.187948,23.306,23.285,20.0]
[1673879422521,17.187948,23.306,23.287,20.0]
[1673879422815,17.187948,23.306,23.288,20.0]
[1673879423022,139.9661,23.33,23.289,20.0]
[1673879423220,21.46196354,23.326,23.29,37.0]
[1673879423426,139.9661,23.33,23.29,90.38842506]
[1673879423750,32.17,23.333,23.292,20.0]
[1673879423956,20.0,23.334,23.292,20.0]
[1673879423957,20.0,23.334,23.294,20.0]
[1673879424180,20.0,23.334,23.295,37.0]
[1673879424181,41.46196354,23.334,23.295,37.0]
[1673879424395,32.17,23.333,23.296,20.0]
[1673879424709,32.17,23.333,23.297,37.0]
[1673879424922,20.0,23.334,23.298,20.0]
[1673879425127,131.817798,23.335,23.299,17.0]
[1673879425456,131.817798,23.335,23.3,20.0]
[1673879425639,163.987798,23.335,23.302,20.0]
[1673879425851,131.817798,23.335,23.303,37.0]
[1673879426061,131.817798,23.335,23.304,20.0]
[1673879426271,131.817798,23.335,23.305,37.0]
[1673879426592,131.817798,23.335,23.306,39.07022708]
[1673879426791,131.817798,23.335,23.307,37.0]
[1673879426792,17.170198,23.335,23.307,37.0]
[1673879427011,17.170198,23.335,23.307,103.39842506]
[1673879427211,17.170198,23.335,23.308,19.07022708]
[1673879427422,17.170198,23.335,23.309,57.0]
[1673879427643,17.170198,23.335,23.309,106.18819798]
[1673879427975,17.170198,23.335,23.31,104.65116384]
[1673879428195,17.170198,23.335,23.311,21.94979]
[1673879428376,17.170198,23.335,23.312,4.94958]
[1673879428702,91.7886442,23.347,23.314,20.0]
[1673879428911,91.7886442,23.347,23.316,20.0]
[1673879429230,33.5715442,23.347,23.317,24.94851]
[1673879429465,32.12,23.371,23.318,41.9483]
[1673879429643,32.13,23.366,23.319,44.94809]
[1673879429852,32.12,23.37,23.32,21.94788]
[1673879430067,0.28441638,23.372,23.321,24.94767]
[1673879430389,32.12,23.371,23.322,41.4216609]
[1673879430576,0.28441638,23.372,23.324,20.0]
[1673879430908,0.28441638,23.372,23.325,145.98663432]
[1673879431107,0.28441638,23.372,23.327,20.0]
[1673879431320,0.28441638,23.372,23.328,41.94618]
[1673879431524,0.28441638,23.372,23.33,20.0]
[1673879431734,21.46196354,23.371,23.331,37.0]
[1673879431957,0.28441638,23.372,23.331,63.07]
[1673879432177,0.28441638,23.372,23.332,39.26352798]
[1673879432487,0.28441638,23.372,23.334,20.0]
[1673879432804,0.28441638,23.372,23.335,90.79240888]
[1673879432993,0.28441638,23.372,23.336,4.94448]
[1673879433324,0.28441638,23.372,23.338,20.0]
[1673879433548,0.28441638,23.372,23.34,20.0]
[1673879433740,0.28441638,23.372,23.341,20.0]
[1673879433938,0.28441638,23.372,23.343,20.0]
[1673879434154,0.28441638,23.372,23.344,17.0]
[1673879434465,0.28441638,23.372,23.344,73.6242109]
[1673879434677,0.28441638,23.372,23.345,39.4742109]
[1673879434997,0.28441638,23.372,23.346,56.4742109]
[1673879435217,0.28441638,23.372,23.347,20.0]
[1673879435421,0.28441638,23.372,23.348,17.0]
[1673879435748,0.28441638,23.372,23.349,20.0]
[1673879435965,0.28441638,23.372,23.35,17.0]
[1673879436171,0.28441638,23.372,23.351,20.0]
[1673879436488,0.28441638,23.372,23.353,20.0]
[1673879436671,0.28441638,23.372,23.354,37.0]
[1673879436881,0.28441638,23.372,23.354,90.79240888]
[1673879437107,0.28441638,23.372,23.355,10.12]
[1673879437310,0.28441638,23.372,23.357,20.0]
[1673879437521,0.28441638,23.372,23.358,37.0]
[1673879437729,0.28441638,23.372,23.358,90.79240888]
[1673879437937,0.28441638,23.372,23.359,20.0]
[1673879438153,0.28441638,23.372,23.36,37.0]
[1673879438361,0.28441638,23.372,23.36,34.31819798]
[1673879438558,0.28441638,23.372,23.358,49.79673878]
[1673879438559,0.28441638,23.372,23.339,31.53]
[1673879438767,53.58196354,23.371,23.339,20.0]
[1673879438997,21.46196354,23.371,23.339,20.0]
[1673879439206,21.46196354,23.37,23.339,20.0]
[1673879439608,0.28441638,23.372,23.34,28.469]
[1673879439825,0.28441638,23.372,23.34,47.9432109]
[1673879440034,0.28441638,23.372,23.34,28.469]
[1673879440244,21.46196354,23.371,23.34,28.469]
[1673879440474,20.0,23.371,23.34,28.469]
[1673879440669,21.74637992,23.372,23.341,20.0]
[1673879440880,21.74637992,23.372,23.34,20.0]
[1673879441082,53.58196354,23.37,23.338,20.0]
[1673879441294,21.96032,23.369,23.331,7.147]
[1673879441629,24.96032,23.368,23.324,20.0]
[1673879441846,21.96032,23.367,23.324,20.0]
[1673879442152,4.96032,23.366,23.324,20.0]
[1673879442370,17.0,23.365,23.32,5.302]
[1673879442560,44.96032,23.364,23.31,4.304]
[1673879442775,20.0,23.362,23.312,20.0]
[1673879442972,24.96032,23.361,23.312,20.0]
[1673879443190,21.96032,23.36,23.312,20.0]
[1673879443419,4.96032,23.359,23.314,20.0]
[1673879443730,17.0,23.358,23.314,20.0]
[1673879443935,24.96032,23.357,23.315,19.4742109]
[1673879444254,41.96032,23.356,23.307,19.4742109]
[1673879444567,76.15169237,23.355,23.307,19.4742109]
[1673879444779,4.96032,23.353,23.277,17.187399]
[1673879444989,134.06032,23.353,23.277,17.187399]
[1673879445196,134.06032,23.353,23.278,19.4742109]
[1673879445197,129.1,23.351,23.278,19.4742109]
[1673879445394,20.0,23.348,23.278,19.4742109]
[1673879445711,134.06032,23.346,23.278,19.4742109]
[1673879446045,134.06032,23.344,23.278,19.4742109]
[1673879446356,20.0,23.341,23.277,17.187399]
[1673879446567,134.06032,23.339,23.277,17.187399]
[1673879446886,134.06032,23.337,23.277,17.187399]
[1673879447091,134.06032,23.335,23.277,17.187399]
[1673879447292,4.96032,23.333,23.278,19.4742109]
[1673879447618,20.0,23.332,23.278,19.4742109]
[1673879447831,41.96032,23.331,23.279,17.0]
[1673879448143,20.0,23.329,23.28,39.4742109]
[1673879448334,20.0,23.327,23.282,20.0]
[1673879448547,20.0,23.327,23.283,17.0]
[1673879448548,21.96032,23.326,23.283,17.0]
[1673879448774,24.96032,23.325,23.284,20.0]
[1673879448968,4.96032,23.324,23.285,17.0]
[1673879449174,58.60228354,23.324,23.285,17.0]
[1673879449384,21.46196354,23.323,23.286,20.0]
[1673879449601,21.46196354,23.323,23.288,20.0]
[1673879449602,24.96032,23.322,23.288,20.0]
[1673879449809,4.96032,23.321,23.288,20.0]
[1673879450015,26.42228354,23.321,23.289,19.4742109]
[1673879450364,73.65196354,23.32,23.29,17.0]
[1673879450659,32.19,23.32,23.291,19.4742109]
[1673879450878,115.0116,23.34,23.292,17.0]
[1673879450879,32.18,23.325,23.292,17.0]
[1673879451075,21.46196354,23.329,23.292,17.0]
[1673879451283,20.0,23.333,23.294,20.0]
[1673879451501,32.17,23.332,23.295,37.0]
[1673879451705,32.17,23.332,23.296,20.0]
[1673879451915,24.96032,23.333,23.296,20.0]
[1673879451916,26.42228354,23.333,23.297,37.0]
[1673879452143,115.0116,23.34,23.297,56.4742109]
[1673879452454,115.0116,23.34,23.298,24.95255]
[1673879452642,26.42228354,23.339,23.299,37.0]
[1673879452855,4.96032,23.338,23.299,56.4742109]
[1673879453063,20.0,23.337,23.3,20.0]
[1673879453293,46.42228354,23.337,23.301,36.78278]
[1673879453488,58.59228354,23.336,23.301,56.2569909]
[1673879453694,20.0,23.335,23.302,19.4742109]
[1673879453916,41.46196354,23.335,23.303,20.0]
[1673879454136,21.46196354,23.334,23.303,20.0]
[1673879454319,20.0,23.333,23.303,39.4742109]
[1673879454536,20.0,23.333,23.303,20.0]
[1673879454874,41.46196354,23.333,23.303,20.0]
[1673879455064,4.96032,23.332,23.303,20.0]
[1673879455274,4.96032,23.332,23.298,20.0]
[1673879455486,21.46196354,23.331,23.298,20.0]
[1673879455728,32.17,23.336,23.299,19.4742109]
[1673879455925,21.46196354,23.335,23.3,20.0]
[1673879456244,24.96032,23.334,23.3,20.0]
[1673879456431,57.13032,23.334,23.3,20.0]
[1673879456649,21.46196354,23.333,23.3,20.0]
[1673879456965,37.0,23.332,23.3,20.0]
[1673879457177,69.17,23.332,23.301,20.0]
[1673879457379,21.46196354,23.331,23.301,20.0]
[1673879457706,21.46196354,23.331,23.302,17.0]
[1673879457917,20.0,23.33,23.303,20.0]
[1673879458130,20.0,23.33,23.304,17.0]
[1673879458347,4.96032,23.334,23.305,40.0]
[1673879458652,32.17,23.336,23.306,17.0]
[1673879458864,32.16,23.339,23.308,20.0]
[1673879459077,32.16,23.339,23.309,17.0]
[1673879459283,32.16,23.339,23.311,20.0]
[1673879459514,21.46196354,23.339,23.312,17.0]
[1673879459727,20.0,23.338,23.313,20.0]
[1673879460120,20.0,23.336,23.313,20.0]
[1673879460347,17.0,23.335,23.306,20.0]
[1673879460561,4.96032,23.334,23.306,20.0]
[1673879460781,17.0,23.333,23.301,20.0]
[1673879460967,4.96032,23.332,23.288,20.0]
[1673879461176,20.0,23.331,23.293,20.0]
[1673879461386,4.96032,23.33,23.293,20.0]
[1673879461615,21.46196354,23.331,23.301,19.4742109]
[1673879461932,112.1482,23.335,23.301,19.4742109]
[1673879462140,32.16,23.34,23.301,19.4742109]
[1673879462141,21.46196354,23.338,23.301,19.4742109]
[1673879462354,20.0,23.345,23.302,37.0]
[1673879462544,21.46196354,23.345,23.303,4.95149]
[1673879462759,115.2694,23.346,23.304,17.0]
[1673879462980,115.2694,23.346,23.305,20.0]
[1673879463304,115.2694,23.346,23.307,20.0]
[1673879463489,115.2694,23.346,23.309,20.0]
[1673879463699,115.2694,23.346,23.31,20.0]
[1673879464026,109.8422,23.348,23.312,20.0]
[1673879464238,109.8422,23.348,23.313,37.0]
[1673879464446,109.8422,23.348,23.313,45.557]
[1673879464642,32.14,23.355,23.314,19.4742109]
[1673879464852,32.14,23.355,23.313,45.557]
[1673879464853,32.12,23.368,23.315,41.94894]
[1673879465074,32.13,23.36,23.315,21.94894]
[1673879465291,52.12,23.367,23.316,58.22873]
[1673879465611,21.46196354,23.364,23.317,21.94851]
[1673879465822,21.46196354,23.364,23.318,24.9483]
[1673879466133,136.36106354,23.361,23.32,20.0]
[1673879466320,114.8991,23.361,23.321,41.94767]
[1673879466539,114.8991,23.361,23.321,79.14160231]
[1673879466540,53.59196354,23.36,23.321,79.14160231]
[1673879466858,74.75274924,23.36,23.322,20.28160231]
[1673879467081,53.59196354,23.36,23.323,17.0]
[1673879467272,114.8991,23.361,23.324,40.0]
[1673879467477,114.8991,23.361,23.326,20.0]
[1673879467799,114.8991,23.361,23.328,20.0]
[1673879468213,20.0,23.36,23.33,20.0]
[1673879468428,52.13,23.36,23.331,17.0]
[1673879468635,73.59196354,23.36,23.332,20.0]
[1673879468856,73.59196354,23.36,23.312,20.0]
[1673879468857,73.59196354,23.36,23.321,29.94]
[1673879469072,32.13,23.36,23.333,20.28160231]
[1673879469490,32.13,23.36,23.322,20.0]
[1673879469685,63.42228354,23.359,23.318,20.28160231]
[1673879469898,4.96032,23.358,23.318,20.28160231]
[1673879470213,4.96032,23.358,23.319,20.0]
[1673879470214,20.0,23.356,23.319,20.0]
[1673879470434,4.96032,23.355,23.319,20.0]
[1673879470649,58.56228354,23.355,23.32,20.28160231]
[1673879470870,32.14,23.355,23.321,20.0]
[1673879471068,21.46196354,23.354,23.321,20.0]
[1673879471280,53.60196354,23.354,23.321,20.0]
[1673879471489,21.46196354,23.354,23.322,20.28160231]
[1673879471693,20.0,23.352,23.323,20.0]
[1673879471903,17.0,23.351,23.313,141.4514]
[1673879472115,20.0,23.349,23.314,20.0]
[1673879472443,17.0,23.348,23.316,40.28160231]
[1673879472644,70.61196354,23.348,23.316,40.28160231]
[1673879472857,21.46196354,23.347,23.316,40.28160231]
[1673879473061,32.15,23.348,23.316,40.28160231]
[1673879473276,21.46196354,23.355,23.317,22.24]
[1673879473602,21.46196354,23.352,23.318,20.0]
[1673879473794,21.46196354,23.352,23.319,20.0]
[1673879474001,32.14,23.357,23.319,40.28160231]
[1673879474326,32.13,23.36,23.32,122.8205918]
[1673879474546,21.46196354,23.366,23.321,24.94767]
[1673879474755,111.8127,23.368,23.322,21.94745]
[1673879474946,111.8127,23.368,23.324,20.0]
[1673879475159,111.8127,23.368,23.325,21.94682]
[1673879475386,21.46196354,23.363,23.326,20.0]
[1673879475602,26.42228354,23.363,23.326,20.0]
[1673879475911,70.07380823,23.362,23.326,20.0]
[1673879476127,24.96032,23.361,23.326,20.0]
[1673879476338,21.96032,23.36,23.326,20.0]
[1673879476549,4.96032,23.359,23.326,20.0]
[1673879476854,26.42228354,23.359,23.326,20.0]
[1673879477073,20.0,23.357,23.327,20.0]
[1673879477276,20.0,23.357,23.326,20.0]
[1673879477488,32.14,23.356,23.325,40.28160231]
[1673879477802,20.0,23.355,23.326,20.28160231]
[1673879477992,20.0,23.355,23.327,20.0]
[1673879477993,41.46196354,23.355,23.327,20.0]
[1673879478205,41.46196354,23.355,23.309,20.0]
[1673879478206,58.56228354,23.354,23.309,43.5]
[1673879478428,4.96032,23.353,23.309,20.0]
[1673879478747,26.42228354,23.353,23.313,20.28160231]
[1673879478973,20.0,23.351,23.313,20.28160231]
[1673879479153,17.0,23.35,23.313,20.28160231]
[1673879479484,62.98640635,23.35,23.309,62.91898949]
[1673879479692,32.15,23.35,23.31,39.28160231]
[1673879479884,20.0,23.349,23.315,20.0]
[1673879480095,20.0,23.349,23.311,20.28160231]
[1673879480325,144.8055,23.348,23.316,20.28160231]
[1673879480529,4.96032,23.347,23.309,20.0]
[1673879480750,17.0,23.346,23.298,19.04]
[1673879480952,20.0,23.344,23.292,20.0]
[1673879481163,4.96032,23.343,23.292,20.0]
[1673879481368,17.0,23.342,23.292,20.0]
[1673879481569,4.96032,23.341,23.292,20.0]
[1673879481794,37.12032,23.341,23.293,32.45160231]
[1673879482013,20.0,23.34,23.294,20.0]
[1673879482213,21.96032,23.339,23.295,20.0]
[1673879482425,20.0,23.337,23.296,20.0]
[1673879482741,24.96032,23.337,23.297,20.0]
[1673879482957,20.0,23.335,23.298,20.0]
[1673879483161,20.0,23.335,23.299,20.0]
[1673879483379,20.0,23.335,23.299,31.75]
[1673879483566,32.17,23.336,23.299,31.75]
[1673879483773,32.16,23.339,23.3,20.28160231]
[1673879484005,20.0,23.341,23.302,20.0]
[1673879484191,20.0,23.341,23.303,20.0]
[1673879484400,75.58228354,23.34,23.298,20.0]
[1673879484615,24.96032,23.339,23.298,20.0]
[1673879484825,4.96032,23.338,23.298,20.0]
[1673879485042,20.0,23.338,23.299,13.08]
[1673879485252,75.59228354,23.337,23.299,42.91898949]
[1673879485580,4.96032,23.336,23.298,20.0]
[1673879485812,37.0,23.335,23.299,20.0]
[1673879486111,4.96032,23.334,23.299,20.0]
[1673879486327,4.96032,23.334,23.291,117.1415]
[1673879486328,17.0,23.333,23.292,34.45]
[1673879486528,4.96032,23.332,23.292,20.0]
[1673879486936,4.96032,23.332,23.294,20.0]
[1673879487143,135.8782,23.335,23.294,20.0]
[1673879487353,115.8782,23.335,23.295,9.959]
[1673879487559,115.8782,23.335,23.297,20.0]
[1673879487898,32.16,23.343,23.299,20.0]
[1673879488111,32.16,23.343,23.3,21.95212]
[1673879488305,32.15,23.346,23.301,24.95191]
[1673879488524,32.15,23.346,23.303,20.0]
[1673879488730,52.15,23.347,23.304,4.95127]
[1673879488938,52.15,23.347,23.306,20.0]
[1673879489146,52.15,23.347,23.307,17.0]
[1673879489363,52.15,23.347,23.307,99.99898949]
[1673879489783,52.15,23.347,23.308,62.91898949]
[1673879490001,52.15,23.347,23.309,37.0]
[1673879490322,20.0,23.347,23.31,20.0]
[1673879490523,32.14,23.354,23.311,37.0]
[1673879490716,32.14,23.359,23.312,4.94958]
[1673879490922,32.14,23.359,23.314,20.0]
[1673879491142,32.14,23.359,23.315,41.94894]
[1673879491351,32.14,23.359,23.316,4.94873]
[1673879491571,20.0,23.358,23.318,20.0]
[1673879491773,20.0,23.358,23.319,20.0]
[1673879491986,20.0,23.358,23.32,37.0]
[1673879492197,20.0,23.358,23.322,20.0]
[1673879492399,20.0,23.358,23.323,17.0]
[1673879492601,20.0,23.358,23.324,20.0]
[1673879492816,20.0,23.358,23.326,20.0]
[1673879493039,52.14,23.357,23.327,17.0]
[1673879493261,52.14,23.357,23.328,20.0]
[1673879493464,52.14,23.357,23.329,17.0]
[1673879493657,32.14,23.357,23.329,17.0]
[1673879493873,20.0,23.365,23.329,17.0]
[1673879493874,20.0,23.358,23.33,20.0]
[1673879494083,20.0,23.358,23.331,17.0]
[1673879494310,20.0,23.358,23.332,20.0]
[1673879494501,41.46196354,23.358,23.333,17.0]
[1673879494838,41.46196354,23.358,23.334,20.0]
[1673879495035,49.14,23.357,23.318,20.0]
[1673879495248,54.10032,23.357,23.319,117.9148]
[1673879495450,47.88424708,23.356,23.319,117.9148]
[1673879495654,20.0,23.354,23.319,117.9148]
[1673879495873,21.96032,23.353,23.307,28.72]
[1673879496106,24.96032,23.352,23.307,108.0654]
[1673879496293,21.96032,23.351,23.307,108.0654]
[1673879496506,37.11032,23.351,23.307,108.0654]
[1673879496728,41.96032,23.35,23.304,23.6]
[1673879496943,24.96032,23.349,23.3,115.4857]
[1673879497158,20.0,23.347,23.301,20.0]
[1673879497366,21.96032,23.346,23.301,20.0]
[1673879497577,20.0,23.344,23.301,20.0]
[1673879497776,20.0,23.342,23.301,20.0]
[1673879497984,17.0,23.341,23.301,20.0]
[1673879498312,70.62196354,23.341,23.301,20.0]
[1673879498523,21.46196354,23.34,23.301,20.0]
[1673879498738,20.0,23.338,23.301,20.0]
[1673879499136,20.0,23.336,23.304,20.0]
[1673879499353,20.0,23.336,23.301,20.0]
[1673879499563,20.0,23.334,23.301,20.0]
[1673879499772,20.0,23.334,23.3,115.4857]
[1673879499979,20.0,23.334,23.301,20.0]
[1673879500945,148.865,23.335,23.302,20.0]
[1673879501154,116.695,23.335,23.302,35.14]
[1673879501371,116.695,23.335,23.304,20.0]
[1673879501676,116.695,23.335,23.303,17.0]
[1673879501677,116.695,23.335,23.305,17.0]
[1673879501872,20.0,23.334,23.305,20.0]
[1673879502090,20.0,23.334,23.306,17.0]
[1673879502287,53.63196354,23.333,23.307,20.0]
[1673879502495,4.96032,23.332,23.292,128.8363]
[1673879502709,20.0,23.331,23.293,20.0]
[1673879502934,78.59228354,23.331,23.293,20.0]
[1673879503145,21.46196354,23.33,23.291,20.0]
[1673879503362,21.96032,23.329,23.285,113.9723]
[1673879503678,46.42228354,23.328,23.285,113.9723]
[1673879503863,21.96032,23.327,23.285,113.9723]
[1673879504074,4.96032,23.326,23.285,113.9723]
[1673879504289,17.0,23.325,23.285,113.9723]
[1673879504514,49.18,23.325,23.278,11.92]
[1673879504723,20.0,23.323,23.278,20.0]
[1673879504931,21.96032,23.322,23.278,26.72]
[1673879505144,4.96032,23.321,23.278,26.72]
[1673879505338,17.0,23.32,23.279,20.0]
[1673879505549,20.0,23.319,23.28,20.0]
[1673879505759,20.0,23.319,23.281,20.0]
[1673879505977,32.19,23.318,23.281,20.0]
[1673879506305,20.0,23.317,23.282,20.0]
[1673879506517,20.0,23.317,23.283,20.0]
[1673879506723,20.0,23.315,23.283,20.0]
[1673879507132,32.2,23.314,23.277,17.187399]
[1673879507345,141.8582,23.314,23.277,17.187399]
[1673879507779,20.0,23.313,23.277,17.187399]
[1673879508305,32.2,23.312,23.277,17.187399]
[1673879508506,49.2,23.312,23.277,17.187399]
[1673879508721,20.0,23.31,23.277,17.187399]
[1673879509130,32.2,23.309,23.277,17.187399]
[1673879509556,151.291,23.309,23.277,17.187399]
[1673879509767,20.0,23.308,23.277,17.187399]
[1673879509991,20.0,23.308,23.278,17.0]
[1673879510193,32.21,23.307,23.279,40.0]
[1673879510410,20.0,23.306,23.279,20.0]
[1673879510722,41.46196354,23.306,23.278,20.0]
[1673879510909,20.0,23.306,23.279,20.0]
[1673879511117,41.46196354,23.306,23.279,20.0]
[1673879511441,21.46196354,23.306,23.279,20.0]
[1673879511874,21.46196354,23.306,23.28,17.0]
[1673879512096,119.091,23.309,23.282,20.0]
[1673879512397,119.091,23.309,23.283,37.0]
[1673879512614,119.091,23.309,23.284,20.0]
[1673879512820,119.091,23.309,23.285,37.0]
[1673879513031,109.6582,23.314,23.285,37.0]
[1673879513641,42.92392708,23.319,23.285,37.0]
[1673879513642,21.46196354,23.319,23.286,20.0]
[1673879513853,108.6378,23.322,23.287,37.0]
[1673879514069,108.6378,23.322,23.288,20.0]
[1673879514281,108.6378,23.322,23.289,37.0]
[1673879514498,21.46196354,23.321,23.289,37.0]
[1673879514828,20.0,23.32,23.29,39.4]
[1673879515132,21.46196354,23.321,23.292,20.0]
[1673879515324,119.6488,23.326,23.293,37.0]
[1673879515534,119.6488,23.326,23.293,58.67]
[1673879515783,119.6488,23.326,23.294,20.0]
[1673879515952,119.6488,23.326,23.295,17.0]
[1673879516168,119.6488,23.326,23.296,20.0]
[1673879516379,119.6488,23.326,23.297,17.0]
[1673879516600,20.0,23.325,23.298,20.0]
[1673879516935,20.0,23.325,23.3,20.0]
[1673879517237,32.17,23.331,23.301,37.0]
[1673879517423,108.8315,23.348,23.301,104.96677732]
[1673879517424,263.7265,23.335,23.301,104.96677732]
[1673879517634,20.0,23.334,23.302,40.67838866]
[1673879517848,20.0,23.334,23.303,37.0]
[1673879518070,20.0,23.334,23.303,57.67838866]
[1673879518277,20.0,23.334,23.305,20.0]
[1673879518494,20.0,23.334,23.306,17.0]
[1673879518689,231.5565,23.335,23.307,20.0]
[1673879518901,20.0,23.334,23.308,17.0]
[1673879519111,20.0,23.334,23.309,20.0]
[1673879519321,20.0,23.334,23.31,17.0]
[1673879519531,20.0,23.334,23.31,37.67838866]
[1673879519766,231.5565,23.335,23.311,20.0]
[1673879519975,231.5565,23.335,23.312,17.0]
[1673879520293,231.5565,23.335,23.313,20.0]
[1673879520511,231.5565,23.335,23.314,17.0]
[1673879520689,20.0,23.334,23.315,20.0]
[1673879521342,20.0,23.334,23.306,20.67838866]
[1673879521343,20.0,23.334,23.307,20.0]
[1673879521545,20.0,23.334,23.31,20.67838866]
[1673879521740,20.0,23.334,23.311,20.0]
[1673879522162,20.0,23.334,23.311,40.67838866]
[1673879522486,20.0,23.334,23.311,20.0]
[1673879522686,20.0,23.334,23.305,20.0]
[1673879522902,20.0,23.332,23.305,20.0]
[1673879523211,20.0,23.332,23.293,28.45]
[1673879523212,20.0,23.332,23.3,20.67838866]
[1673879523445,49.17,23.331,23.291,119.2131]
[1673879523751,24.96032,23.33,23.292,20.67838866]
[1673879523973,21.96032,23.329,23.292,20.67838866]
[1673879524174,4.96032,23.328,23.292,20.67838866]
[1673879524365,20.0,23.326,23.294,20.0]
[1673879524578,20.0,23.326,23.292,20.67838866]
[1673879524801,32.18,23.325,23.292,20.67838866]
[1673879525015,4.96032,23.324,23.291,119.2131]
[1673879525217,17.0,23.323,23.287,20.67838866]
[1673879525429,17.0,23.323,23.278,20.0]
[1673879525430,20.0,23.321,23.279,110.1742]
[1673879525752,41.96032,23.32,23.279,130.85258866]
[1673879525956,4.96032,23.319,23.279,110.1742]
[1673879526154,17.0,23.318,23.279,110.1742]
[1673879526365,24.96032,23.317,23.279,110.1742]
[1673879526584,41.96032,23.316,23.28,40.67838866]
[1673879526911,20.0,23.315,23.281,20.67838866]
[1673879527127,17.0,23.314,23.281,20.67838866]
[1673879527317,4.96032,23.313,23.279,110.1742]
[1673879527532,4.96032,23.313,23.28,20.67838866]
[1673879527533,20.0,23.311,23.28,20.67838866]
[1673879527738,49.2,23.312,23.281,20.0]
[1673879527949,32.2,23.312,23.281,20.0]
[1673879528163,32.19,23.319,23.282,25.22938866]
[1673879528379,52.19,23.321,23.282,25.22938866]
[1673879528596,32.19,23.321,23.283,60.67838866]
[1673879528781,108.8024,23.322,23.284,17.0]
[1673879528997,108.8024,23.322,23.285,20.0]
[1673879529208,108.8024,23.322,23.285,40.67838866]
[1673879529209,4.96032,23.321,23.285,40.67838866]
[1673879529423,20.0,23.32,23.285,20.0]
[1673879529635,4.96032,23.319,23.285,20.0]
[1673879529961,17.0,23.318,23.28,20.0]
[1673879530152,24.96032,23.317,23.28,20.0]
[1673879530366,57.15032,23.317,23.282,20.0]
[1673879530580,57.15032,23.317,23.283,20.0]
[1673879530804,24.96032,23.317,23.283,40.67838866]
[1673879531020,4.96032,23.317,23.284,40.67838866]
[1673879531330,20.0,23.32,23.284,40.67838866]